[Event "Croatian-ch Youth U13 2022"]
[Site "Trogir"]
[Date "2022.06.23"]
[Round "3.11"]
[White "Vucenovic, Diara"]
[Black "Car, Lana"]
[Result "1-0"]
[ECO "C50"]
[WhiteElo "1352"]
[BlackElo "1189"]
[Annotator "NA RC"]
[PlyCount "79"]
[EventDate "2022.06.22"]
[EventType "swiss"]
[EventCountry "CRO"]
[SourceTitle "playchess.com"]
[Source "ChessBase"]
[SourceQuality "1"]
[TimeControl "5400+30"]

1. e4 {[%emt 0:00:09]} e5 {[%emt 0:00:33]} 2. Nf3 {[%emt 0:00:14]} Nc6 {[%emt 0:00:37]} 3. Bc4 {[%emt 0:00:22]} Bc5 {[%emt 0:00:37]} 4. Nc3 {[%emt 0:00:36]} Nge7 {[%emt 0:00:48]} 5. d3 {[%emt 0:01:00]} d6 {[%emt 0:04:32]} 6. Bd2 {[%emt 0:01:27]} O-O {[%emt 0:02:25]} 7. Qe2 {[%emt 0:05:48]} Kh8 {[%emt 0:06:55]} 8. Ng5 {[%emt 0:02:30]} h6 {[%emt 0:08:29]} 9. Nxf7+ {[%emt 0:02:25]} Rxf7 {[%emt 0:00:11]} 10. Bxf7 {[%emt 0:00:45]} Qf8 {[%emt 0:02:57]} 11. Bb3 {[%emt 0:02:08]} Nd4 {[%emt 0:01:09]} 12. Qf1 {[%emt 0:01:42]} Bg4 {[%emt 0:03:26]} 13. Be3 {[%emt 0:04:40]} Nec6 {[%emt 0:07:07]} 14. Kd2 {[%emt 0:07:31]} Qe7 {[%emt 0:10:10]} 15. f3 {[%emt 0:03:38]} Rf8 {[%emt 0:00:29]} 16. Nd5 {[%emt 0:16:21]} Qd7 {[%emt 0:04:19]} 17. c3 {[%emt 0:01:24]} Nxf3+ {[%emt 0:01:41]} 18. gxf3 {[%emt 0:00:42]} Rxf3 {[%emt 0:02:10]} 19. Qg1 {[%emt 0:01:33]} Bxe3+ {[%emt 0:02:16]} 20. Nxe3 {[%emt 0:00:17]} Bh3 {[%emt 0:00:30]} 21. Bd1 {[%emt 0:00:53]} Rf6 {[%emt 0:01:16]} 22. Bg4 {[%emt 0:00:56]} Bxg4 {[%emt 0:00:29]} 23. Qxg4 {[%emt 0:00:41]} Rf2+ {[%emt 0:01:13]} 24. Kc1 {[%emt 0:00:45]} Qf7 {[%emt 0:01:08]} 25. Nf5 {[%emt 0:05:01]} g6 {[%emt 0:00:34]} 26. Ne3 {[%emt 0:03:01]} Ne7 {[%emt 0:00:32]} 27. Qh3 {[%emt 0:01:25]} Kg7 {[%emt 0:01:45]} 28. Rf1 {[%emt 0:01:46]} Qf4 {[%emt 0:00:55]} 29. Rxf2 {[%emt 0:00:39]} Qxf2 {[%emt 0:00:19]} 30. Qg3 {[%emt 0:01:02]} Qe2 {[%emt 0:00:24]} 31. Nd1 {[%emt 0:00:54]} Ng8 {[%emt 0:01:11]} 32. h3 {[%emt 0:04:04]} Nf6 {[%emt 0:00:21]} 33. Qe3 {[%emt 0:01:33]} Qg2 {[%emt 0:00:40]} 34. Qxa7 {[%emt 0:01:23]} Nh5 {[%emt 0:00:38]} 35. Qxb7 {[%emt 0:05:20]} Kf6 {[%emt 0:01:39]} 36. a4 {[%emt 0:01:19]} Nf4 {[%emt 0:00:45]} 37. Kb1 {[%emt 0:02:53]} Nxd3 {[%emt 0:00:45]} 38. a5 {[%emt 0:00:39]} Qd2 {[%emt 0:01:13]} 39. Qb3 {[%emt 0:01:27]} Qc1+ {[%emt 0:00:59]} 40. Ka2 {[%emt 0:01:57]} 1-0

[Event "Croatian-ch Youth U13 2022"]
[Site "Trogir"]
[Date "2022.06.24"]
[Round "4.1"]
[White "Poljan, Max"]
[Black "Pehar, Borna"]
[Result "1/2-1/2"]
[ECO "B33"]
[WhiteElo "1618"]
[BlackElo "1756"]
[Annotator "NA RC"]
[PlyCount "96"]
[EventDate "2022.06.22"]
[EventType "swiss"]
[EventCountry "CRO"]
[SourceTitle "playchess.com"]
[Source "ChessBase"]
[SourceQuality "1"]
[TimeControl "5400+30"]

1. e4 {[%emt 0:00:30]} c5 {[%emt 0:00:30]} 2. Nf3 {[%emt 0:00:30]} Nc6 {[%emt 0:00:30]} 3. d4 {[%emt 0:00:30]} cxd4 {[%emt 0:00:30]} 4. Nxd4 {[%emt 0:00:30]} Nf6 {[%emt 0:00:30]} 5. Nc3 {[%emt 0:00:30]} e5 {[%emt 0:00:30]} 6. Ndb5 {[%emt 0:00:30]} d6 {[%emt 0:00:30]} 7. Nd5 {[%emt 0:00:30]} Nxd5 8. exd5 Ne7 {[%emt 0:01:05]} 9. c3 {[%emt 0:00:00]} Nf5 {[%emt 0:02:33]} 10. a4 {[%emt 0:00:00]} g6 {[%emt 0:05:21]} 11. Be2 {[%emt 0:00:00]} Bg7 {[%emt 0:00:49]} 12. O-O {[%emt 0:00:09]} O-O {[%emt 0:01:38]} 13. Bd2 {[%emt 0:01:47]} a6 {[%emt 0:01:42]} 14. Na3 {[%emt 0:00:33]} Ne7 {[%emt 0:01:03]} 15. Be3 {[%emt 0:13:44]} Rb8 {[%emt 0:13:21]} 16. Ba7 {[%emt 0:01:03]} Ra8 {[%emt 0:00:30]} 17. Be3 {[%emt 0:00:04]} Nf5 {[%emt 0:10:07]} 18. Bd2 {[%emt 0:01:06]} Bd7 {[%emt 0:09:46]} 19. Nc4 {[%emt 0:06:07]} b5 {[%emt 0:06:10]} 20. axb5 {[%emt 0:00:04]} Bxb5 {[%emt 0:00:40]} 21. Ne3 {[%emt 0:01:52]} Rc8 {[%emt 0:08:51]} 22. Bxb5 {[%emt 0:03:32]} Nxe3 {[%emt 0:00:48]} 23. Bxe3 {[%emt 0:00:07]} axb5 {[%emt 0:00:14]} 24. Qb3 {[%emt 0:00:30]} f5 {[%emt 0:04:12]} 25. Qxb5 {[%emt 0:12:21]} Rb8 {[%emt 0:03:21]} 26. Qe2 {[%emt 0:01:04]} f4 {[%emt 0:00:46]} 27. Ba7 {[%emt 0:00:12]} Rb7 {[%emt 0:01:54]} 28. f3 {[%emt 0:00:29]} Qc7 {[%emt 0:03:42]} 29. Bf2 {[%emt 0:00:59]} Rfb8 {[%emt 0:00:35]} 30. Ra2 {[%emt 0:03:40]} Qf7 {[%emt 0:03:01]} 31. c4 {[%emt 0:04:19]} g5 {[%emt 0:06:50]} 32. Rfa1 {[%emt 0:01:17]} Qg6 {[%emt 0:04:11]} 33. h3 {[%emt 0:10:48]} h5 {[%emt 0:01:05]} 34. Ra8 {[%emt 0:00:29]} Rxa8 {[%emt 0:00:49]} 35. Rxa8+ {[%emt 0:00:05]} Kh7 {[%emt 0:00:06]} 36. Ra1 {[%emt 0:17:45]} e4 {[%emt 0:02:40]} 37. Qxe4 {[%emt 0:01:26]} Rxb2 {[%emt 0:01:22]} 38. Qxg6+ {[%emt 0:00:20]} Kxg6 {[%emt 0:00:08]} 39. Ra6 {[%emt 0:03:58]} Be5 {[%emt 0:00:47]} 40. Bc5 {[%emt 0:02:03]} Kf5 {[%emt 0:00:54]} 41. Bxd6 {[%emt 0:00:52]} Bd4+ {[%emt 0:01:06]} 42. Kf1 {[%emt 0:00:04]} Rc2 {[%emt 0:01:01]} 43. Rc6 {[%emt 0:08:55]} g4 {[%emt 0:02:44]} 44. hxg4+ {[%emt 0:01:45]} hxg4 {[%emt 0:00:13]} 45. fxg4+ {[%emt 0:00:04]} Ke4 {[%emt 0:00:53]} 46. Bxf4 {[%emt 0:02:53]} Kxf4 {[%emt 0:00:18]} 47. g5 {[%emt 0:00:20]} Bc3 {[%emt 0:01:55]} 48. g6 {[%emt 0:01:45]} Kg3 {[%emt 0:00:17]} 1/2-1/2

[Event "Croatian-ch Youth U13 2022"]
[Site "Trogir"]
[Date "2022.06.24"]
[Round "4.2"]
[White "Delibasic, Dominik"]
[Black "Petrus, Adrian"]
[Result "0-1"]
[ECO "B92"]
[WhiteElo "1523"]
[BlackElo "1526"]
[Annotator "NA RC"]
[PlyCount "64"]
[EventDate "2022.06.22"]
[EventType "swiss"]
[EventCountry "CRO"]
[SourceTitle "playchess.com"]
[Source "ChessBase"]
[SourceQuality "1"]
[TimeControl "5400+30"]

1. e4 {[%emt 0:00:30]} c5 {[%emt 0:00:30]} 2. Nf3 {[%emt 0:00:30]} d6 {[%emt 0:00:30]} 3. d4 {[%emt 0:00:30]} cxd4 {[%emt 0:00:30]} 4. Nxd4 {[%emt 0:00:30]} Nf6 {[%emt 0:00:30]} 5. Nc3 a6 6. Be2 {[%emt 0:02:29]} e5 {[%emt 0:02:23]} 7. Nb3 {[%emt 0:01:14]} Be6 {[%emt 0:00:58]} 8. Be3 {[%emt 0:03:41]} Be7 {[%emt 0:02:07]} 9. Qd2 {[%emt 0:04:20]} O-O {[%emt 0:02:26]} 10. O-O-O {[%emt 0:04:03]} Nbd7 {[%emt 0:04:41]} 11. f3 {[%emt 0:05:40]} b5 {[%emt 0:04:32]} 12. Kb1 {[%emt 0:15:13]} Nb6 {[%emt 0:08:15]} 13. Bxb6 {[%emt 0:10:35]} Qxb6 {[%emt 0:00:04]} 14. Nd5 {[%emt 0:01:44]} Bxd5 {[%emt 0:06:50]} 15. exd5 {[%emt 0:00:18]} a5 {[%emt 0:06:29]} 16. Qd3 {[%emt 0:05:39]} a4 {[%emt 0:04:05]} 17. Nd2 {[%emt 0:02:12]} Rfb8 {[%emt 0:03:30]} 18. h4 {[%emt 0:04:32]} Nh5 {[%emt 0:10:54]} 19. Ne4 {[%emt 0:09:35]} Nf4 {[%emt 0:03:38]} 20. Qd2 {[%emt 0:00:19]} Ra7 {[%emt 0:10:03]} 21. Bf1 {[%emt 0:07:36]} Nh5 {[%emt 0:03:15]} 22. Qf2 {[%emt 0:09:28]} Qa5 {[%emt 0:04:07]} 23. Qd2 {[%emt 0:03:12]} Qd8 {[%emt 0:01:52]} 24. Qf2 {[%emt 0:00:51]} Qc7 {[%emt 0:00:45]} 25. Ng3 {[%emt 0:03:25]} Nxg3 {[%emt 0:01:20]} 26. Qxg3 {[%emt 0:00:29]} a3 {[%emt 0:00:27]} 27. Rd3 {[%emt 0:00:47]} axb2 {[%emt 0:00:57]} 28. Kxb2 {[%emt 0:00:26]} Bf6 {[%emt 0:00:16]} 29. Rb3 {[%emt 0:00:55]} Rxa2+ {[%emt 0:04:45]} 30. Kxa2 {[%emt 0:00:24]} Qxc2+ {[%emt 0:00:03]} 31. Ka3 {[%emt 0:00:37]} Ra8+ {[%emt 0:00:06]} 32. Kb4 {[%emt 0:00:14]} Qc5# {[%emt 0:00:02]} 0-1

[Event "Croatian-ch Youth U13 2022"]
[Site "Trogir"]
[Date "2022.06.24"]
[Round "4.3"]
[White "Lovrekovic, Leo"]
[Black "Tadic, Jure"]
[Result "1/2-1/2"]
[ECO "C68"]
[WhiteElo "1188"]
[BlackElo "1565"]
[Annotator "NA RC"]
[PlyCount "50"]
[EventDate "2022.06.22"]
[EventType "swiss"]
[EventCountry "CRO"]
[SourceTitle "playchess.com"]
[Source "ChessBase"]
[SourceQuality "1"]
[TimeControl "5400+30"]

1. e4 {[%emt 0:00:00]} e5 {[%emt 0:02:20]} 2. Nf3 {[%emt 0:00:00]} Nc6 {[%emt 0:00:30]} 3. Bb5 {[%emt 0:00:00]} a6 {[%emt 0:00:30]} 4. Bxc6 dxc6 5. d4 {[%emt 0:00:40]} exd4 {[%emt 0:02:52]} 6. Qxd4 {[%emt 0:00:09]} Qxd4 {[%emt 0:01:34]} 7. Nxd4 {[%emt 0:00:11]} Nf6 {[%emt 0:00:34]} 8. f3 {[%emt 0:00:18]} Bd7 {[%emt 0:01:52]} 9. Nc3 {[%emt 0:02:29]} O-O-O {[%emt 0:01:01]} 10. Bd2 {[%emt 0:03:50]} Bc5 {[%emt 0:05:56]} 11. Nde2 {[%emt 0:00:19]} Be6 {[%emt 0:02:26]} 12. O-O-O {[%emt 0:01:54]} Rd7 {[%emt 0:14:27]} 13. Bf4 {[%emt 0:18:36]} Nh5 {[%emt 0:12:58]} 14. Rxd7 {[%emt 0:05:13]} Bxd7 {[%emt 0:00:19]} 15. Bd2 {[%emt 0:01:34]} Nf6 {[%emt 0:09:24]} 16. Na4 {[%emt 0:04:41]} Ba7 {[%emt 0:01:52]} 17. b3 {[%emt 0:02:14]} Rd8 {[%emt 0:04:03]} 18. Rd1 {[%emt 0:03:21]} Be8 {[%emt 0:09:56]} 19. Nac3 {[%emt 0:03:29]} h6 {[%emt 0:04:02]} 20. Bf4 {[%emt 0:02:21]} Rxd1+ {[%emt 0:01:30]} 21. Kxd1 {[%emt 0:00:25]} Nh5 {[%emt 0:01:39]} 22. Bc1 {[%emt 0:03:34]} g5 {[%emt 0:00:58]} 23. g4 {[%emt 0:00:43]} Ng7 {[%emt 0:01:00]} 24. Bb2 {[%emt 0:01:16]} Ne6 {[%emt 0:00:43]} 25. Nb1 {[%emt 0:01:09]} Kd7 {[%emt 0:02:13]} 1/2-1/2

[Event "Croatian-ch Youth U13 2022"]
[Site "Trogir"]
[Date "2022.06.24"]
[Round "4.4"]
[White "Kresic, Vid"]
[Black "Radic, Borna"]
[Result "1-0"]
[ECO "D66"]
[WhiteElo "1459"]
[BlackElo "1289"]
[Annotator "NA COMBH"]
[PlyCount "119"]
[EventDate "2022.06.22"]
[EventType "swiss"]
[EventCountry "CRO"]
[SourceTitle "playchess.com"]
[Source "ChessBase"]
[SourceQuality "1"]
[TimeControl "5400+30"]

1. d4 {[%emt 0:00:30]} d5 {[%emt 0:00:30]} 2. c4 {[%emt 0:00:30]} e6 {[%emt 0:00:30]} 3. Nc3 {[%emt 0:00:30]} Nf6 {[%emt 0:00:30]} 4. Bg5 {[%emt 0:00:30]} Be7 {[%emt 0:00:30]} 5. e3 {[%emt 0:00:30]} h6 {[%emt 0:00:30]} 6. Bh4 O-O {[%emt 0:00:00]} 7. Nf3 {[%emt 0:00:38]} c6 {[%emt 0:00:15]} 8. Bd3 {[%emt 0:00:22]} dxc4 {[%emt 0:00:44]} 9. Bxc4 {[%emt 0:00:05]} Nd5 {[%emt 0:00:08]} 10. Bxe7 {[%emt 0:00:39]} Qxe7 {[%emt 0:00:10]} 11. O-O {[%emt 0:00:49]} Nd7 {[%emt 0:00:18]} 12. Rc1 {[%emt 0:02:11]} N7f6 {[%emt 0:00:52]} 13. a3 {[%emt 0:05:07]} Rd8 {[%emt 0:01:26]} 14. Bxd5 {[%emt 0:01:55]} exd5 {[%emt 0:00:37]} 15. h3 {[%emt 0:00:46]} Bf5 {[%emt 0:03:17]} 16. b4 {[%emt 0:01:35]} a6 {[%emt 0:00:57]} 17. Na4 {[%emt 0:00:18]} Nd7 {[%emt 0:01:43]} 18. Nc5 {[%emt 0:00:49]} Nxc5 {[%emt 0:00:46]} 19. bxc5 {[%emt 0:00:06]} Qc7 {[%emt 0:02:23]} 20. Qb3 {[%emt 0:01:49]} Bc8 {[%emt 0:01:03]} 21. Rb1 {[%emt 0:00:30]} Re8 {[%emt 0:04:24]} 22. Qb6 {[%emt 0:00:41]} Qxb6 {[%emt 0:01:37]} 23. Rxb6 {[%emt 0:00:05]} f6 {[%emt 0:05:04]} 24. Rfb1 {[%emt 0:00:18]} Re7 {[%emt 0:00:43]} 25. Nd2 {[%emt 0:00:08]} Ra7 {[%emt 0:02:39]} 26. Nb3 {[%emt 0:00:49]} Kf8 {[%emt 0:00:46]} 27. Na5 {[%emt 0:00:51]} f5 {[%emt 0:01:36]} 28. Kf1 {[%emt 0:01:14]} Kf7 {[%emt 0:00:15]} 29. Nb3 {[%emt 0:00:33]} Kf6 {[%emt 0:02:51]} 30. Nc1 {[%emt 0:00:04]} g6 {[%emt 0:01:23]} 31. Nd3 {[%emt 0:00:22]} h5 {[%emt 0:03:58]} 32. Nb4 {[%emt 0:01:06]} Kf7 {[%emt 0:01:00]} 33. Nd3 {[%emt 0:00:36]} Kf6 {[%emt 0:00:18]} 34. Ne5 {[%emt 0:00:15]} Kg7 {[%emt 0:00:56]} 35. f3 {[%emt 0:00:28]} Kf6 {[%emt 0:02:15]} 36. Kf2 {[%emt 0:00:04]} Kg7 {[%emt 0:04:27]} 37. g4 {[%emt 0:00:22]} hxg4 {[%emt 0:00:33]} 38. hxg4 {[%emt 0:00:12]} fxg4 {[%emt 0:00:17]} 39. fxg4 {[%emt 0:00:06]} Re8 {[%emt 0:00:55]} 40. Rf1 {[%emt 0:02:00]} Rf8+ {[%emt 0:00:21]} 41. Kg2 {[%emt 0:00:04]} Rxf1 {[%emt 0:00:11]} 42. Kxf1 {[%emt 0:00:04]} Kf6 {[%emt 0:00:16]} 43. Kf2 {[%emt 0:00:08]} Be6 {[%emt 0:00:35]} 44. Kg3 {[%emt 0:00:35]} Bc8 {[%emt 0:00:43]} 45. Rb1 {[%emt 0:00:08]} Kg7 {[%emt 0:00:58]} 46. Kf3 {[%emt 0:02:36]} Be6 {[%emt 0:00:34]} 47. Nd3 {[%emt 0:03:29]} Bd7 {[%emt 0:02:05]} 48. Kf4 {[%emt 0:00:22]} Kf6 {[%emt 0:00:21]} 49. g5+ {[%emt 0:00:18]} Ke7 {[%emt 0:00:30]} 50. Ne5 {[%emt 0:02:28]} Bf5 {[%emt 0:00:25]} 51. Rh1 {[%emt 0:00:08]} Kf8 {[%emt 0:03:06]} 52. Rh7 {[%emt 0:00:24]} Kg8 {[%emt 0:00:18]} 53. Rc7 {[%emt 0:00:09]} Ra8 {[%emt 0:00:26]} 54. Rxb7 {[%emt 0:00:26]} Rf8 {[%emt 0:00:08]} 55. Kg3 {[%emt 0:02:05]} Bc8 {[%emt 0:00:32]} 56. Rc7 {[%emt 0:00:16]} Bf5 {[%emt 0:00:28]} 57. Ng4 {[%emt 0:00:31]} Bxg4 {[%emt 0:00:13]} 58. Kxg4 {[%emt 0:00:04]} Rf1 {[%emt 0:00:12]} 59. Rxc6 {[%emt 0:00:04]} Ra1 {[%emt 0:00:09]} 60. Rxg6+ {[%emt 0:00:08]} 1-0

[Event "Croatian-ch Youth U13 2022"]
[Site "Trogir"]
[Date "2022.06.24"]
[Round "4.6"]
[White "Horvat, Ivan"]
[Black "Mimica, Matija"]
[Result "1-0"]
[ECO "B18"]
[WhiteElo "1290"]
[BlackElo "1421"]
[Annotator "NA RC"]
[PlyCount "43"]
[EventDate "2022.06.22"]
[EventType "swiss"]
[EventCountry "CRO"]
[SourceTitle "playchess.com"]
[Source "ChessBase"]
[SourceQuality "1"]
[TimeControl "5400+30"]

1. e4 {[%emt 0:00:02]} c6 {[%emt 0:00:25]} 2. d4 {[%emt 0:00:38]} d5 {[%emt 0:00:20]} 3. Nc3 {[%emt 0:00:15]} dxe4 {[%emt 0:00:38]} 4. Nxe4 {[%emt 0:00:17]} Bf5 {[%emt 0:00:53]} 5. Ng3 {[%emt 0:00:37]} Bg6 {[%emt 0:00:12]} 6. Nf3 {[%emt 0:00:25]} Nd7 {[%emt 0:00:31]} 7. Bd3 {[%emt 0:00:43]} Bxd3 {[%emt 0:01:17]} 8. Qxd3 {[%emt 0:00:17]} Ngf6 {[%emt 0:00:40]} 9. Bf4 {[%emt 0:01:57]} e6 {[%emt 0:00:47]} 10. O-O {[%emt 0:02:51]} Be7 {[%emt 0:01:17]} 11. c4 {[%emt 0:00:46]} O-O {[%emt 0:01:29]} 12. a3 {[%emt 0:01:15]} c5 {[%emt 0:00:34]} 13. d5 {[%emt 0:00:54]} exd5 {[%emt 0:00:58]} 14. cxd5 {[%emt 0:01:42]} Re8 {[%emt 0:13:48]} 15. Rad1 {[%emt 0:08:04]} Nf8 {[%emt 0:20:46]} 16. d6 {[%emt 0:03:16]} Ne6 {[%emt 0:01:17]} 17. Be5 {[%emt 0:08:31]} Bf8 {[%emt 0:04:21]} 18. d7 {[%emt 0:00:29]} Re7 {[%emt 0:00:09]} 19. Bxf6 {[%emt 0:00:15]} gxf6 {[%emt 0:00:06]} 20. Nf5 {[%emt 0:00:21]} Nf4 {[%emt 0:00:58]} 21. Nxe7+ {[%emt 0:01:26]} Bxe7 {[%emt 0:00:04]} 22. Qe4 {[%emt 0:00:56]} 1-0

[Event "Croatian-ch Youth U13 2022"]
[Site "Trogir"]
[Date "2022.06.24"]
[Round "4.8"]
[White "Puljiz, Marin"]
[Black "Miletic, Ivan"]
[Result "1-0"]
[ECO "B32"]
[WhiteElo "1296"]
[BlackElo "1461"]
[Annotator "NA RC"]
[PlyCount "65"]
[EventDate "2022.06.22"]
[EventType "swiss"]
[EventCountry "CRO"]
[SourceTitle "playchess.com"]
[Source "ChessBase"]
[SourceQuality "1"]
[TimeControl "5400+30"]

1. e4 {[%emt 0:00:01]} c5 {[%emt 0:00:09]} 2. Nf3 {[%emt 0:00:04]} Nc6 {[%emt 0:00:14]} 3. d4 {[%emt 0:00:03]} cxd4 {[%emt 0:00:21]} 4. Nxd4 {[%emt 0:00:05]} e5 {[%emt 0:00:33]} 5. Nf3 {[%emt 0:00:05]} d6 {[%emt 0:00:57]} 6. h3 {[%emt 0:00:32]} Nf6 {[%emt 0:00:31]} 7. Nc3 {[%emt 0:00:11]} Be7 {[%emt 0:01:15]} 8. Bg5 {[%emt 0:01:29]} Be6 {[%emt 0:00:54]} 9. Qd2 {[%emt 0:02:00]} O-O {[%emt 0:03:55]} 10. O-O-O {[%emt 0:01:21]} a5 {[%emt 0:01:05]} 11. Bb5 {[%emt 0:00:48]} Qc7 {[%emt 0:02:56]} 12. Kb1 {[%emt 0:05:21]} Rfd8 {[%emt 0:00:45]} 13. a3 {[%emt 0:02:14]} Na7 {[%emt 0:10:12]} 14. Ba4 {[%emt 0:09:55]} b5 {[%emt 0:04:30]} 15. Bxf6 {[%emt 0:13:04]} Bxf6 {[%emt 0:00:37]} 16. Bxb5 {[%emt 0:00:44]} Nxb5 {[%emt 0:00:22]} 17. Nxb5 {[%emt 0:00:10]} Qb6 {[%emt 0:00:46]} 18. a4 {[%emt 0:03:11]} Be7 {[%emt 0:00:46]} 19. Qe2 {[%emt 0:01:58]} Rdc8 {[%emt 0:01:54]} 20. b3 {[%emt 0:01:42]} Bd7 {[%emt 0:02:00]} 21. Rhf1 {[%emt 0:02:57]} Rc5 {[%emt 0:00:41]} 22. Rd5 {[%emt 0:01:41]} Bxb5 {[%emt 0:00:58]} 23. axb5 {[%emt 0:00:19]} a4 {[%emt 0:00:52]} 24. b4 {[%emt 0:01:32]} Rxd5 {[%emt 0:00:41]} 25. exd5 {[%emt 0:00:17]} a3 {[%emt 0:00:20]} 26. Ka2 {[%emt 0:00:54]} f5 {[%emt 0:01:34]} 27. Qc4 {[%emt 0:01:02]} e4 {[%emt 0:03:30]} 28. Nd4 {[%emt 0:00:43]} Bf6 {[%emt 0:00:41]} 29. Nc6 {[%emt 0:01:02]} e3 {[%emt 0:01:00]} 30. f3 {[%emt 0:00:37]} Rc8 {[%emt 0:01:13]} 31. Re1 {[%emt 0:03:27]} e2 {[%emt 0:00:40]} 32. Qxe2 {[%emt 0:00:43]} Rxc6 {[%emt 0:00:24]} 33. Qe6+ {[%emt 0:01:03]} 1-0

[Event "Croatian-ch Youth U13 2022"]
[Site "Trogir"]
[Date "2022.06.24"]
[Round "4.9"]
[White "Zagorac, Lara"]
[Black "Vucenovic, Diara"]
[Result "1-0"]
[ECO "D02"]
[WhiteElo "1482"]
[BlackElo "1352"]
[Annotator "NA RC"]
[PlyCount "75"]
[EventDate "2022.06.22"]
[EventType "swiss"]
[EventCountry "CRO"]
[SourceTitle "playchess.com"]
[Source "ChessBase"]
[SourceQuality "1"]
[TimeControl "5400+30"]

1. d4 {[%emt 0:00:03]} d5 {[%emt 0:00:03]} 2. Nf3 {[%emt 0:00:33]} Nf6 {[%emt 0:00:04]} 3. Bf4 {[%emt 0:00:32]} e6 {[%emt 0:00:09]} 4. e3 {[%emt 0:00:38]} Bd6 {[%emt 0:00:28]} 5. Bg3 {[%emt 0:00:52]} O-O {[%emt 0:00:35]} 6. Nbd2 {[%emt 0:00:25]} b6 {[%emt 0:01:09]} 7. c3 {[%emt 0:00:25]} Bb7 {[%emt 0:00:58]} 8. Bd3 {[%emt 0:00:20]} Nbd7 {[%emt 0:00:50]} 9. Ne5 {[%emt 0:01:58]} Qe7 {[%emt 0:10:08]} 10. Ndf3 {[%emt 0:01:45]} c5 {[%emt 0:07:12]} 11. Nxd7 {[%emt 0:03:20]} Qxd7 {[%emt 0:03:54]} 12. Ne5 {[%emt 0:00:34]} Qc7 {[%emt 0:01:14]} 13. f4 {[%emt 0:00:55]} c4 {[%emt 0:06:41]} 14. Bc2 {[%emt 0:01:14]} Ne4 {[%emt 0:03:20]} 15. Bxe4 {[%emt 0:02:16]} dxe4 {[%emt 0:00:39]} 16. Ng4 {[%emt 0:00:53]} Bd5 {[%emt 0:07:34]} 17. O-O {[%emt 0:05:12]} f6 {[%emt 0:09:37]} 18. Nf2 {[%emt 0:12:50]} Qf7 {[%emt 0:05:51]} 19. Nh1 {[%emt 0:01:54]} Qg6 {[%emt 0:02:25]} 20. f5 {[%emt 0:02:55]} Qh6 {[%emt 0:04:32]} 21. Bxd6 {[%emt 0:01:11]} Qxe3+ {[%emt 0:00:26]} 22. Rf2 {[%emt 0:02:28]} Rfe8 {[%emt 0:02:59]} 23. Bf4 {[%emt 0:05:40]} Qd3 {[%emt 0:00:09]} 24. Rd2 {[%emt 0:00:41]} Qxd2 {[%emt 0:01:18]} 25. Qxd2 {[%emt 0:01:02]} exf5 {[%emt 0:00:08]} 26. h4 {[%emt 0:00:42]} Re7 {[%emt 0:01:09]} 27. Ng3 {[%emt 0:01:02]} g6 {[%emt 0:00:25]} 28. Nf1 {[%emt 0:00:43]} Rae8 {[%emt 0:00:24]} 29. Ne3 {[%emt 0:00:17]} Bf7 {[%emt 0:00:27]} 30. Qc2 {[%emt 0:00:56]} Kg7 {[%emt 0:00:27]} 31. h5 {[%emt 0:00:38]} b5 {[%emt 0:00:33]} 32. b3 {[%emt 0:00:38]} cxb3 {[%emt 0:00:48]} 33. axb3 {[%emt 0:00:07]} h6 {[%emt 0:00:07]} 34. hxg6 {[%emt 0:00:25]} Bxg6 {[%emt 0:00:07]} 35. c4 {[%emt 0:00:12]} b4 {[%emt 0:00:22]} 36. d5 {[%emt 0:00:22]} h5 {[%emt 0:00:36]} 37. d6 {[%emt 0:00:06]} Rd7 {[%emt 0:00:12]} 38. c5 {[%emt 0:00:06]} 1-0

[Event "Croatian-ch Youth U13 2022"]
[Site "Trogir"]
[Date "2022.06.24"]
[Round "4.10"]
[White "Franc, Marta"]
[Black "Hajdinic, Ema"]
[Result "0-1"]
[ECO "D55"]
[WhiteElo "1168"]
[BlackElo "1535"]
[Annotator "NA"]
[PlyCount "122"]
[EventDate "2022.06.22"]
[EventType "swiss"]
[EventCountry "CRO"]
[SourceTitle "playchess.com"]
[Source "ChessBase"]
[SourceQuality "1"]
[TimeControl "5400+30"]

1. d4 {[%emt 0:09:36]} d5 {[%emt 0:00:04]} 2. c4 {[%emt 0:00:03]} e6 {[%emt 0:00:04]} 3. Nc3 {[%emt 0:00:07]} Nf6 {[%emt 0:00:05]} 4. Bg5 {[%emt 0:00:06]} Be7 {[%emt 0:00:04]} 5. Nf3 {[%emt 0:00:06]} O-O {[%emt 0:00:19]} 6. e3 {[%emt 0:00:11]} Nbd7 {[%emt 0:00:14]} 7. Rc1 {[%emt 0:00:52]} b6 {[%emt 0:00:06]} 8. cxd5 {[%emt 0:00:05]} exd5 {[%emt 0:00:21]} 9. Bd3 {[%emt 0:00:16]} Bb7 {[%emt 0:00:21]} 10. O-O {[%emt 0:00:17]} c5 {[%emt 0:01:24]} 11. Re1 {[%emt 0:01:36]} Re8 {[%emt 0:01:03]} 12. Bb5 {[%emt 0:02:26]} Ne4 {[%emt 0:05:53]} 13. Bxe7 {[%emt 0:01:09]} Rxe7 {[%emt 0:00:14]} 14. Bxd7 {[%emt 0:00:40]} Qxd7 {[%emt 0:01:35]} 15. Qc2 {[%emt 0:03:54]} cxd4 {[%emt 0:02:09]} 16. exd4 {[%emt 0:01:56]} Rae8 {[%emt 0:05:43]} 17. Re3 {[%emt 0:07:08]} Nxc3 {[%emt 0:06:31]} 18. Qxc3 {[%emt 0:03:20]} Rxe3 {[%emt 0:02:03]} 19. fxe3 {[%emt 0:01:00]} Qe6 {[%emt 0:01:41]} 20. Re1 {[%emt 0:00:54]} Rc8 {[%emt 0:00:53]} 21. Qd3 {[%emt 0:01:53]} f6 {[%emt 0:02:15]} 22. a3 {[%emt 0:04:35]} Rc4 {[%emt 0:01:41]} 23. b3 {[%emt 0:01:38]} Rc7 {[%emt 0:00:26]} 24. Qd2 {[%emt 0:03:08]} Qe4 {[%emt 0:00:54]} 25. Rc1 {[%emt 0:01:32]} Rxc1+ {[%emt 0:03:31]} 26. Qxc1 {[%emt 0:00:18]} Qd3 {[%emt 0:00:10]} 27. b4 {[%emt 0:01:05]} Ba6 {[%emt 0:01:19]} 28. Nd2 {[%emt 0:01:33]} Qxe3+ {[%emt 0:00:16]} 29. Kh1 {[%emt 0:01:01]} Qxd4 {[%emt 0:00:19]} 30. Nf3 {[%emt 0:01:14]} Qc4 {[%emt 0:00:44]} 31. Qxc4 {[%emt 0:00:22]} dxc4 {[%emt 0:00:12]} 32. Nd4 {[%emt 0:00:09]} c3 {[%emt 0:00:32]} 33. Nb3 {[%emt 0:00:37]} c2 {[%emt 0:00:15]} 34. Nc1 {[%emt 0:00:06]} Bc4 {[%emt 0:00:07]} 35. Kg1 {[%emt 0:00:09]} Kf7 {[%emt 0:00:13]} 36. Kf2 {[%emt 0:00:07]} Bd5 {[%emt 0:00:28]} 37. g3 {[%emt 0:00:11]} Be4 {[%emt 0:00:08]} 38. Ke3 {[%emt 0:00:07]} Bg6 {[%emt 0:00:12]} 39. Kd2 {[%emt 0:00:24]} Ke6 {[%emt 0:00:10]} 40. Kc3 {[%emt 0:00:06]} Ke5 {[%emt 0:00:08]} 41. Kd2 {[%emt 0:00:23]} h5 {[%emt 0:00:38]} 42. Ke3 {[%emt 0:00:11]} Bh7 {[%emt 0:00:18]} 43. Kd2 {[%emt 0:00:15]} g5 {[%emt 0:00:08]} 44. Ke3 {[%emt 0:00:06]} f5 {[%emt 0:00:25]} 45. h3 {[%emt 0:00:24]} f4+ {[%emt 0:00:04]} 46. gxf4+ {[%emt 0:00:06]} gxf4+ {[%emt 0:00:04]} 47. Kf3 {[%emt 0:00:22]} Bf5 {[%emt 0:00:14]} 48. h4 {[%emt 0:00:07]} Bg4+ {[%emt 0:00:07]} 49. Kf2 {[%emt 0:00:08]} Kd4 {[%emt 0:00:07]} 50. Ke1 {[%emt 0:00:21]} Kc3 {[%emt 0:00:08]} 51. Kf2 {[%emt 0:00:24]} Kb2 {[%emt 0:00:09]} 52. Nd3+ {[%emt 0:00:08]} Kb1 {[%emt 0:00:04]} 53. Kg1 {[%emt 0:00:20]} c1=Q+ {[%emt 0:00:07]} 54. Nxc1 {[%emt 0:00:06]} Kxc1 {[%emt 0:00:05]} 55. Kf2 {[%emt 0:00:03]} f3 {[%emt 0:00:08]} 56. a4 {[%emt 0:00:05]} Kd2 {[%emt 0:00:13]} 57. a5 {[%emt 0:00:12]} bxa5 {[%emt 0:00:06]} 58. bxa5 {[%emt 0:00:07]} a6 {[%emt 0:00:06]} 59. Kf1 {[%emt 0:00:12]} Ke3 {[%emt 0:00:28]} 60. Ke1 {[%emt 0:00:13]} f2+ {[%emt 0:00:07]} 61. Kf1 {[%emt 0:00:06]} Bh3# {[%emt 0:00:07]} 0-1